fUSD/lending_fUSD_20260227
["ID","MTS","AMOUNT","RATE_DAILY","PERIOD"]
[406800263,1772203846358,-1343.94,0.00016712,2]
[406800264,1772203846367,-266.65,0.00016896,2]
[406800265,1772203846376,-9999.99,0.00016922,2]
[406800267,1772203846386,-23814.67,0.00016922,2]
[406800268,1772203846395,-1343.94,0.00016986,2]
[406800270,1772203846406,-300.0,0.00017,2]
[406800271,1772203846417,-500.0,0.00017068,2]
[406800273,1772203846426,-8782.68815971,0.00017199,2]
[406800274,1772203846435,-874.83,0.00017236,2]
[406800276,1772203846446,-1343.94,0.0001726,2]
[406800277,1772203846455,-367.075851,0.00017286,7]
[406800279,1772203846465,-1590.662019,0.00017382,7]
[406800280,1772203846474,-10000.0,0.00017392,2]
[406800282,1772203846485,-4212.0052927,0.00017412,2]
[406800284,1772203846494,-599.83,0.00017509,2]
[406800285,1772203846503,-1343.94,0.00017534,2]
[406800287,1772203846512,-2000.0,0.0001759,2]
[406800288,1772203846521,-188.0,0.00017616,2]
[406800290,1772203846531,-2000.0,0.0001769,2]
[406800291,1772203846541,-158.83553081,0.00017698,2]
[406800293,1772203846550,-150.0,0.00017698,2]
[406800294,1772203846560,-500.0,0.00017698,2]
[406800296,1772203846569,-150.0,0.00017698,2]
[406800298,1772203846579,-500.0,0.00017698,2]
[406800299,1772203846588,-249.73245123,0.00017698,2]
[406800301,1772203846597,-500.0,0.00017698,2]
[406800303,1772203846607,-436.0,0.00017698,2]
[406800304,1772203846616,-150.0,0.00017753,2]
[406800306,1772203846625,-500.0,0.00017753,2]
[406800307,1772203846634,-150.0,0.00017753,2]
[406800308,1772203846643,-500.0,0.00017753,2]
[406800309,1772203846652,-500.0,0.00017753,2]
[406800310,1772203846662,-436.0,0.00017753,2]
[406800311,1772203846671,-2000.0,0.0001779,2]
[406800312,1772203846681,-150.0,0.00017808,2]
[406800313,1772203846690,-500.0,0.00017808,2]
[406800314,1772203846699,-200.0,0.00017808,2]
[406800315,1772203846708,-500.0,0.00017808,2]
[406800316,1772203846717,-500.0,0.00017808,2]
[406800317,1772203846727,-436.0,0.00017808,2]
[406800318,1772203846736,-1344.00057164,0.00017808,2]
[406800319,1772203846745,-500.0,0.00017808,2]
[406800320,1772203846755,-500.0,0.00017808,2]
[406800321,1772203846764,-500.0,0.00017808,2]
[406800322,1772203846773,-500.0,0.00017808,2]
[406800323,1772203846783,-500.0,0.00017808,2]
[406800324,1772203846793,-500.0,0.00017808,2]
[406800325,1772203846803,-500.0,0.00017808,2]
[406800326,1772203846812,-500.0,0.00017808,2]
[406800327,1772203846822,-500.0,0.00017808,2]
[406800328,1772203846832,-500.0,0.00017808,2]
[406800329,1772203846841,-500.0,0.00017808,2]
[406800330,1772203846851,-500.0,0.00017808,2]
[406800331,1772203846860,-500.0,0.00017808,2]
[406800332,1772203846870,-243.54182568,0.00017808,2]
[406800333,1772203846879,-500.0,0.00017808,2]
[406800334,1772203846888,-500.0,0.00017808,2]
[406800335,1772203846898,-500.0,0.00017808,2]
[406800336,1772203846907,-500.0,0.00017808,2]
[406800337,1772203846917,-500.0,0.00017808,2]
[406800338,1772203846927,-500.0,0.00017808,2]
[406800339,1772203846936,-533.33333333,0.00017808,2]
[406800340,1772203846947,-533.33333333,0.00017808,2]
[406800341,1772203846956,-533.33333333,0.00017808,2]
[406800342,1772203846966,-533.33333333,0.00017808,2]
[406800343,1772203846975,-533.33333333,0.00017808,2]
[406800344,1772203846985,-533.33333333,0.00017808,2]
[406800345,1772203846994,-533.33333333,0.00017808,2]
[406800346,1772203847004,-533.33333333,0.00017808,2]
[406800347,1772203847013,-533.33333333,0.00017808,2]
[406800348,1772203847023,-151.0,0.00017808,2]
[406800349,1772203847032,-278.322927,0.00017808,2]
[406800350,1772203847041,-509.0,0.0001785,4]
[406800351,1772203847050,-150.0,0.00017862,2]
[406800352,1772203847059,-563.0,0.00017862,2]
[406800353,1772203847069,-500.0,0.00017862,2]
[406800354,1772203847079,-500.0,0.00017862,2]
[406800355,1772203847088,-436.0,0.00017862,2]
[406800356,1772203847098,-500.0,0.00017863,2]
[406800357,1772203847108,-200.0,0.0001789,2]
[406800358,1772203847117,-200.0,0.0001789,2]
[406800359,1772203847127,-200.0,0.0001789,3]
[406800360,1772203847136,-200.0,0.0001789,3]
[406800361,1772203847146,-200.0,0.000179,6]
[406800362,1772203847155,-1643.78018193,0.000179,2]
[406800363,1772203847165,-150.0,0.00017917,2]
[406800364,1772203847174,-387.0,0.00017917,2]
[406800365,1772203847184,-500.0,0.00017917,2]
[406800366,1772203847194,-436.0,0.00017917,2]
[406800367,1772203847204,-500.0,0.00017918,2]
[406800368,1772203847213,-500.0,0.00017968,2]
[406800369,1772203847223,-500.0,0.00017968,2]
[406800370,1772203847232,-500.0,0.00017968,2]
[406800371,1772203847242,-151.0,0.00017969,2]
[406800372,1772203847251,-151.0,0.00017969,2]
[406800373,1772203847262,-300.0,0.00017972,2]
[406800374,1772203847272,-666.0,0.00017972,2]
[406800375,1772203847281,-250.0,0.00017972,2]
[406800376,1772203847291,-500.0,0.00017972,2]
[406800377,1772203847301,-436.0,0.00017972,2]
[406800378,1772203847310,-500.0,0.00017972,2]
[406800379,1772203847319,-500.0,0.00017973,2]
[406800380,1772203847328,-501.97857854,0.00017973,2]
[406800381,1772203847337,-500.0,0.00017973,2]
[406800382,1772203847347,-500.0,0.00017973,2]
[406800383,1772203847356,-500.0,0.00017973,2]
[406800384,1772203847366,-500.0,0.00017973,2]
[406800385,1772203847376,-500.0,0.00017973,2]
[406800386,1772203847386,-500.0,0.00017973,2]
[406800387,1772203847395,-500.0,0.00017973,2]
[406800388,1772203847409,-500.0,0.00017973,2]
[406800389,1772203847419,-504.75046136,0.00017973,2]
[406800390,1772203847428,-500.0,0.00017973,2]
[406800391,1772203847438,-505.28465419,0.00017973,2]
[406800392,1772203847449,-500.0,0.00017973,2]
[406800393,1772203847459,-500.0,0.00017973,2]
[406800394,1772203847468,-502.48858977,0.00017973,2]
[406800395,1772203847480,-500.0,0.00017973,2]
[406800396,1772203847489,-500.0,0.00017973,2]
[406800397,1772203847499,-500.0,0.00017973,2]
[406800398,1772203847508,-500.0,0.00017973,2]
[406800399,1772203847519,-500.0,0.00017973,2]
[406800400,1772203847528,-564.44693438,0.00017973,2]
[406800401,1772203847538,-500.0,0.00017973,2]
[406800402,1772203847547,-500.0,0.00017973,2]
[406800403,1772203847557,-500.0,0.00017973,2]
[406800404,1772203847566,-500.0,0.00017973,2]
[406800405,1772203847576,-500.0,0.00017973,2]
[406800406,1772203847587,-500.0,0.00017973,2]
[406800407,1772203847596,-310.9054072,0.00017973,2]
[406800408,1772203847607,-500.0,0.00017973,2]
[406800409,1772203847616,-504.20237615,0.00017973,2]
[406800410,1772203847626,-507.14846603,0.00017973,2]
[406800411,1772203847636,-555.40539763,0.00017973,2]
[406800412,1772203847645,-500.0,0.00017973,2]
[406800413,1772203847654,-500.0,0.00017973,2]
[406800414,1772203847663,-666.0,0.00017989,2]
[406800415,1772203847673,-300.0,0.00017989,2]
[406800416,1772203847682,-500.0,0.0001799,4]
[406800417,1772203847691,-500.0,0.0001799,4]
[406800418,1772203847700,-500.0,0.0001799,4]
[406800419,1772203847710,-645.74125194,0.0001799,4]
[406800420,1772203847719,-200.0,0.0001799,4]
[406800421,1772203847728,-151.0,0.0001799,4]
[406800422,1772203847738,-200.0,0.0001799,4]
[406800423,1772203847747,-151.0,0.0001799,4]
[406800424,1772203847756,-200.0,0.0001799,4]
[406800425,1772203847765,-151.0,0.0001799,4]
[406800426,1772203847775,-200.0,0.0001799,4]
[406800427,1772203847785,-151.0,0.0001799,4]
[406800428,1772203847794,-200.0,0.0001799,4]
[406800429,1772203847803,-151.0,0.0001799,4]
[406800430,1772203847813,-200.0,0.0001799,4]
[406800431,1772203847823,-151.0,0.0001799,4]
[406800432,1772203847834,-200.0,0.0001799,4]
[406800433,1772203847843,-151.0,0.0001799,4]
[406800434,1772203847853,-200.0,0.0001799,4]
[406800435,1772203847862,-151.0,0.0001799,4]
[406800436,1772203847871,-200.0,0.0001799,4]
[406800437,1772203847992,-151.0,0.0001799,4]
[406800438,1772203848002,-200.0,0.0001799,4]
[406800439,1772203848011,-151.0,0.0001799,4]
[406800440,1772203848020,-200.0,0.0001799,4]
[406800441,1772203848030,-151.0,0.0001799,4]
[406800442,1772203848039,-200.0,0.0001799,4]
[406800443,1772203848048,-151.0,0.0001799,4]
[406800444,1772203848058,-200.0,0.0001799,4]
[406800445,1772203848067,-234.50005133,0.0001799,4]
[406800446,1772203848076,-200.0,0.0001799,4]
[406800447,1772203848085,-200.0,0.0001799,4]
[406800448,1772203848095,-200.0,0.0001799,4]
[406800449,1772203848104,-200.0,0.0001799,4]
[406800450,1772203848114,-200.0,0.0001799,4]
[406800451,1772203848124,-200.0,0.0001799,4]
[406800452,1772203848133,-200.0,0.0001799,4]
[406800453,1772203848143,-151.0,0.0001799,4]
[406800454,1772203848153,-151.0,0.0001799,4]
[406800455,1772203848162,-151.0,0.0001799,4]
[406800456,1772203848171,-151.0,0.0001799,4]
[406800457,1772203848181,-151.0,0.0001799,4]
[406800458,1772203848190,-151.0,0.0001799,4]
[406800459,1772203848199,-151.0,0.0001799,4]
[406800460,1772203848210,-151.0,0.0001799,4]
[406800461,1772203848220,-500.0,0.0001799,4]
[406800462,1772203848229,-151.0,0.0001799,4]
[406800463,1772203848239,-500.0,0.0001799,4]
[406800464,1772203848249,-151.0,0.0001799,4]
[406800465,1772203848257,-500.0,0.0001799,4]
[406800466,1772203848267,-151.0,0.0001799,4]
[406800467,1772203848277,-500.0,0.0001799,4]
[406800468,1772203848286,-151.0,0.0001799,4]
[406800469,1772203848295,-500.0,0.0001799,4]
[406800470,1772203848304,-151.0,0.0001799,4]
[406800471,1772203848314,-500.0,0.0001799,4]
[406800472,1772203848323,-500.0,0.0001799,4]
[406800473,1772203848332,-500.0,0.0001799,4]
[406800474,1772203848341,-500.0,0.0001799,4]
[406800475,1772203848350,-500.0,0.0001799,4]
[406800476,1772203848359,-500.0,0.0001799,4]
[406800477,1772203848368,-500.0,0.0001799,4]
[406800478,1772203848377,-500.0,0.0001799,4]
[406800479,1772203848386,-500.0,0.0001799,4]
[406800480,1772203848395,-500.0,0.0001799,4]
[406800481,1772203848406,-500.0,0.0001799,4]
[406800482,1772203848415,-500.0,0.0001799,4]
[406800483,1772203848425,-500.0,0.0001799,4]
[406800484,1772203848434,-500.0,0.0001799,4]
[406800485,1772203848443,-500.0,0.0001799,4]
[406800486,1772203848452,-500.0,0.0001799,4]
[406800487,1772203848461,-500.0,0.0001799,4]
[406800488,1772203848470,-500.0,0.0001799,4]
[406800489,1772203848482,-500.0,0.0001799,4]
[406800490,1772203848491,-500.0,0.0001799,4]
[406800491,1772203848500,-500.0,0.0001799,4]
[406800492,1772203848510,-419.22132892,0.0001799,2]
[406800493,1772203848519,-500.0,0.00017999,2]
[406800494,1772203848529,-150.0,0.00017999,2]
[406800495,1772203848538,-150.0,0.00017999,2]
[406800496,1772203848547,-150.0,0.00017999,2]
[406800497,1772203848565,-150.0,0.00017999,2]
[406800498,1772203848577,-290.59963285,0.00017999,2]
[406800499,1772203848586,-300.0,0.00017999,2]
[406800500,1772203848596,-1000.0,0.00018,2]
[406800501,1772203848606,-612.14922787,0.00018,2]
[406800502,1772203848615,-203761.74288023,0.00018,2]
[406800503,1772203848625,-95183.67738077,0.00018,2]
[406800504,1772203849057,-858.87950471,0.00018,2]
[406800505,1772203849073,-2555.23392667,0.00018,2]
[406800506,1772203849084,-11250.13516593,0.00018,2]
[406800507,1772203849094,-1784.81031866,0.00018,2]
[406800508,1772203849303,-1290.88419414,0.00013363,2]
[406800509,1772203849315,-2129.39662644,0.00013363,2]
[406800510,1772203849325,-12371.02033077,0.00013363,2]
[406800511,1772203849337,-386.52687576,0.00013363,2]
[406800512,1772203849349,-3303.95636721,0.00013363,2]
[406800513,1772203849358,-128795.94734876,0.00018,2]
[406800514,1772203849369,-97550.0000005,0.00018,2]
[406800515,1772203849381,-310.25882034,0.00018,2]
[406800516,1772203849395,-1298297.57548771,0.00018,2]
[406800517,1772203849409,-239.677,0.00018,8]
[406800518,1772203849419,-1511.0,0.00018,2]
[406800519,1772203849428,-151.0,0.00018,2]
[406800520,1772203849437,-151.0,0.00018,2]
[406800521,1772203849447,-291.35399164,0.00018,2]
[406800522,1772203849456,-160.66556425,0.00018,2]
[406800523,1772203849465,-152.0,0.00018,2]
[406800524,1772203849475,-152.0,0.00018,2]
[406800525,1772203849485,-152.0,0.00018,2]
[406800526,1772203849494,-155.50565445,0.00018,2]
[406800527,1772203849503,-327.46247238,0.00018,2]
[406800528,1772203849512,-171.10993119,0.00018,2]
[406800529,1772203849521,-200.0,0.00018,2]
[406800530,1772203849530,-151.0,0.00018,2]
[406800531,1772203849540,-1511.0,0.00018,2]
[406800532,1772203849550,-151.0,0.00018,2]
[406800533,1772203849560,-1511.0,0.00018,2]
[406800534,1772203849569,-151.0,0.00018,2]
[406800535,1772203849579,-151.0,0.00018,2]
[406800536,1772203849588,-1511.0,0.00018,2]
[406800537,1772203849598,-151.0,0.00018,2]
[406800538,1772203849607,-151.0,0.00018,2]
[406800539,1772203849617,-1511.0,0.00018,2]
[406800540,1772203849626,-151.0,0.00018,2]
[406800541,1772203849636,-151.0,0.00018,2]
[406800542,1772203849657,-151.0,0.00018,2]
[406800543,1772203849667,-1511.0,0.00018,2]
[406800544,1772203849677,-151.0,0.00018,2]
[406800545,1772203849686,-1511.0,0.00018,2]
[406800546,1772203849697,-151.0,0.00018,2]
[406800547,1772203849706,-151.0,0.00018,2]
[406800548,1772203849716,-151.0,0.00018,2]
[406800549,1772203849726,-151.0,0.00018,2]
[406800550,1772203849735,-151.0,0.00018,2]
[406800551,1772203849744,-151.0,0.00018,2]
[406800552,1772203849754,-151.0,0.00018,2]
[406800553,1772203849764,-151.0,0.00018,2]
[406800554,1772203849773,-151.0,0.00018,2]
[406800555,1772203849783,-151.0,0.00018,2]
[406800556,1772203849792,-151.0,0.00018,2]
[406800557,1772203849802,-151.0,0.00018,2]
[406800558,1772203849811,-151.0,0.00018,2]
[406800559,1772203849820,-250.72418667,0.00018,2]
[406800560,1772203849830,-1511.0,0.00018,2]
[406800561,1772203849839,-1511.0,0.00018,2]
[406800562,1772203849848,-151.0,0.00018,2]
[406800563,1772203849858,-1511.0,0.00018,2]
[406800564,1772203849867,-151.0,0.00018,2]
[406800565,1772203849876,-1511.0,0.00018,2]
[406800566,1772203849885,-244.03346909,0.00018,2]
[406800567,1772203849894,-1511.0,0.00018,2]
[406800568,1772203849903,-1511.0,0.00018,2]
[406800569,1772203849913,-1511.0,0.00018,2]
[406800570,1772203849922,-1511.0,0.00018,2]
[406800571,1772203849932,-1511.0,0.00018,2]
[406800572,1772203849941,-1511.0,0.00018,2]
[406800573,1772203849951,-1511.0,0.00018,2]
[406800574,1772203849961,-1511.0,0.00018,2]
[406800575,1772203849971,-1511.0,0.00018,2]
[406800576,1772203849981,-1511.0,0.00018,2]
[406800577,1772203849991,-1511.0,0.00018,2]
[406800578,1772203850000,-1511.0,0.00018,2]
[406800579,1772203850010,-887.42293333,0.00018,2]
[406800580,1772203850019,-151.0,0.00018,2]
[406800581,1772203850030,-151.0,0.00018,2]
[406800582,1772203850040,-200.0,0.00018,2]
[406800583,1772203850050,-151.0,0.00018,2]
[406800584,1772203850060,-151.0,0.00018,2]
[406800585,1772203850070,-151.0,0.00018,2]
[406800586,1772203850080,-151.0,0.00018,2]
[406800587,1772203850090,-151.0,0.00018,2]
[406800588,1772203850100,-151.0,0.00018,2]
[406800589,1772203850110,-151.0,0.00018,2]
[406800590,1772203850119,-151.0,0.00018,2]
[406800591,1772203850129,-282.99727,0.00018,2]
[406800592,1772203850139,-282.99727,0.00018,2]
[406800593,1772203850148,-282.99727,0.00018,2]
[406800594,1772203850158,-282.99727,0.00018,2]
[406800595,1772203850168,-282.99727,0.00018,2]
[406800596,1772203850178,-282.99727,0.00018,2]
[406800597,1772203850187,-282.99727,0.00018,2]
[406800598,1772203850197,-282.99727,0.00018,2]
[406800599,1772203850207,-151.0,0.00018,2]
[406800600,1772203850216,-151.0,0.00018,2]
[406800601,1772203850225,-151.0,0.00018,2]
[406800602,1772203850235,-151.0,0.00018,2]
[406800603,1772203850244,-151.0,0.00018,2]
[406800604,1772203850253,-151.0,0.00018,2]
[406800605,1772203850263,-151.0,0.00018,2]
[406800606,1772203850272,-151.0,0.00018,2]
[406800607,1772203850281,-151.0,0.00018,2]
[406800608,1772203850290,-151.0,0.00018,2]
[406800609,1772203850300,-151.0,0.00018,2]
[406800610,1772203850310,-346.311245,0.00018,2]
[406800611,1772203850319,-346.311245,0.00018,2]
[406800612,1772203850328,-346.311245,0.00018,2]
[406800613,1772203850338,-346.311245,0.00018,2]
[406800614,1772203850347,-493.961025,0.00018,2]
[406800615,1772203850356,-493.961025,0.00018,2]
[406800616,1772203850365,-493.961025,0.00018,2]
[406800617,1772203850375,-493.961025,0.00018,2]
[406800618,1772203850386,-330.409036,0.00018,2]
[406800619,1772203850395,-330.409036,0.00018,2]
[406800620,1772203850407,-330.409036,0.00018,2]
[406800621,1772203850418,-330.409031,0.00018,2]
[406800622,1772203850427,-151.0,0.00018,2]
[406800623,1772203850437,-151.0,0.00018,2]
[406800624,1772203850447,-151.0,0.00018,2]
[406800625,1772203850457,-201.691028,0.00018,2]
[406800626,1772203850466,-500.0,0.00018027,2]
[406800627,1772203850475,-436.0,0.00018027,2]
[406800628,1772203850485,-500.0,0.00018027,2]
[406800629,1772203850495,-200.0,0.00018069,2]
[406800630,1772203850506,-200.0,0.00018069,2]
[406800631,1772203850515,-500.0,0.00018082,2]
[406800632,1772203850525,-436.0,0.00018082,2]
[406800633,1772203850534,-500.0,0.00018082,2]
[406800634,1772203850543,-500.0,0.00018082,2]
[406800635,1772203850552,-500.0,0.00018136,2]
[406800636,1772203850561,-436.0,0.00018136,2]
[406800637,1772203850570,-284.0,0.00018137,2]
[406800638,1772203850580,-200.0,0.0001818,2]
[406800639,1772203850589,-200.0,0.0001818,2]
[406800640,1772203850598,-500.0,0.00018191,2]
[406800641,1772203850608,-436.0,0.00018191,2]
[406800642,1772203850617,-261.85881362,0.0001821,2]
[406800643,1772203850626,-635.0,0.0001823,2]
[406800644,1772203850636,-150.0,0.0001823,2]
[406800645,1772203850645,-150.0,0.0001823,2]
[406800646,1772203850655,-187.0,0.0001823,2]
[406800647,1772203850664,-500.0,0.00018246,2]
[406800648,1772203850681,-436.0,0.00018246,2]
[406800649,1772203850691,-200.0,0.0001825,2]
[406800650,1772203850700,-500.0,0.00018301,2]
[406800651,1772203850710,-436.0,0.00018301,2]
[406800652,1772203850720,-449.80649406,0.00018356,2]
[406800653,1772203850729,-436.0,0.00018356,2]
[406800654,1772203850739,-200.0,0.00018362,2]
[406800655,1772203850748,-200.0,0.00018362,2]
[406800656,1772203850758,-1519.27,0.00018375,2]
[406800657,1772203850767,-436.0,0.0001841,2]
[406800658,1772203850777,-340.8,0.00018424,2]
[406800659,1772203850786,-200.0,0.00018432,2]
[406800660,1772203850795,-436.0,0.00018465,2]
[406800661,1772203850805,-436.0,0.0001852,2]
[406800662,1772203850815,-1000.0,0.00018521,2]
[406800663,1772203850824,-520.55026084,0.00018521,2]
[406800664,1772203850834,-1000.0,0.00018521,2]
[406800665,1772203850843,-1000.0,0.00018521,2]
[406800666,1772203850853,-200.0,0.00018545,2]
[406800667,1772203850862,-200.0,0.00018545,2]
[406800668,1772203850988,-436.0,0.00018575,2]
[406800669,1772203850998,-4235.24,0.00018575,2]
[406800670,1772203851008,-214.78,0.00018576,2]
[406800671,1772203851017,-340.8,0.00018602,2]
[406800672,1772203851027,-200.0,0.00018616,2]
[406800673,1772203851036,-436.0,0.0001863,2]
[406800674,1772203851046,-436.0,0.00018684,2]
[406800675,1772203851055,-200.0,0.00018731,2]
[406800676,1772203851065,-200.0,0.00018731,2]
[406800677,1772203851076,-436.0,0.00018739,2]
[406800678,1772203851086,-340.8,0.0001878,2]
[406800679,1772203851096,-436.0,0.00018794,2]
[406800680,1772203851105,-436.0,0.00018849,2]
[406800681,1772203851115,-1001.5686,0.000189,2]
[406800682,1772203851124,-436.0,0.00018903,2]
[406800683,1772203851134,-453.83648665,0.00018958,2]
[406800684,1772203851144,-623.78997997,0.00019,2]
[406800685,1772203851154,-350.0,0.00019,2]
[406800686,1772203851164,-78517.03522968,0.00019,2]
[406800687,1772203851174,-500.0,0.00019068,2]
[406800688,1772203851184,-1500.0,0.00019068,2]
[406800689,1772203851193,-500.0,0.00019068,2]
[406800690,1772203851203,-180.5,0.00019128,2]
[406800691,1772203851212,-314.1553363,0.00019616,2]
[406800692,1772203851222,-500.0,0.00019674,2]
[406800693,1772203851231,-500.0,0.00019674,2]
[406800694,1772203851241,-152.0,0.00019734,7]
[406800695,1772203851251,-4304.98121039,0.0001995,15]
[406800696,1772203851260,-151.0,0.00020045,2]
[406800697,1772203851270,-151.0,0.00020045,2]
[406800698,1772203851279,-2000.0,0.000202,2]
[406800699,1772203851289,-1519.27,0.00020213,2]
[406800700,1772203851299,-500.0,0.00020493,2]
[406800701,1772203851309,-385.0,0.00020636,2]
[406800702,1772203851318,-509.0,0.00020809,7]
[406800703,1772203851328,-4635.08,0.00020968,2]
[406800704,1772203851337,-500.0,0.00020988,2]
[406800705,1772203851346,-552.0,0.00021243,2]
[406800706,1772203851355,-150.0,0.00021243,2]
[406800707,1772203851364,-150.0,0.00021243,2]
[406800708,1772203851373,-277.0,0.00021243,2]
[406800709,1772203851384,-1745.34069446,0.00021275,2]
[406800710,1772203851393,-290.89011574,0.00021466,2]
[406800711,1772203851403,-500.0,0.00021507,2]
[406800712,1772203851416,-500.0,0.00021616,2]
[406800713,1772203851425,-290.89011574,0.00021679,2]
[406800714,1772203851434,-8782.68815971,0.00021739,2]
[406800715,1772203851445,-180.5,0.00021818,2]
[406800716,1772203851455,-290.89011574,0.00021891,2]
[406800717,1772203851465,-2000.0,0.000219,2]
[406800718,1772203851475,-318.74,0.00021918,30]
[406800719,1772203851486,-5000.0,0.00021918,2]
[406800720,1772203851495,-150.0,0.00021918,2]
[406800721,1772203851504,-150.0,0.00021918,2]
[406800722,1772203851514,-250.27,0.00022,30]
[406800723,1772203851523,-1519.27,0.0002205,2]
[406800724,1772203851533,-151.0,0.00022122,2]
[406800725,1772203851543,-151.0,0.00022122,2]
[406800726,1772203851553,-1328.95,0.00022279,2]
[406800727,1772203851562,-15085.0,0.00022534,2]
[406800728,1772203851572,-5557.48,0.0002274,2]
[406800729,1772203851580,-2123.78,0.000229,2]
[406800730,1772203851590,-4000.0,0.00022911,2]
[406800731,1772203851599,-160.0,0.00023,2]
[406800732,1772203851608,-150.0,0.00023014,2]
[406800733,1772203851618,-500.0,0.0002315,2]
[406800734,1772203851627,-500.0,0.00023205,2]
[406800735,1772203851637,-4000.0,0.00023484,2]
[406800736,1772203851646,-2000.0,0.000236,2]
[406800737,1772203851655,-509.0,0.00023769,9]
[406800738,1772203851665,-500.0,0.00023796,2]
[406800739,1772203851674,-4000.0,0.00024056,2]
[406800740,1772203851684,-318.74,0.00024081,30]
[406800741,1772203851693,-155.790681,0.00024198,2]
[406800742,1772203851703,-294.694375,0.00024198,2]
[406800743,1772203851712,-180.5,0.00024508,2]
[406800744,1772203851722,-150.0,0.00024548,2]
[406800745,1772203851731,-4000.0,0.00024629,2]
[406800746,1772203851754,-2022.00864656,0.00024657,2]
[406800747,1772203851772,-1000.0,0.00024658,2]
[406800748,1772203851791,-150.0,0.00024658,2]
[406800749,1772203851806,-257.91778498,0.00024674,2]
[406800750,1772203851825,-250.0,0.00024674,2]
[406800751,1772203851845,-255.78372187,0.00024674,2]
[406800752,1772203851863,-250.0,0.00024674,2]
[406800753,1772203851882,-578.20924308,0.00024674,2]
[406800754,1772203851899,-250.0,0.00024674,2]
[406800755,1772203851920,-250.0,0.00024674,2]
[406800756,1772203851935,-250.0,0.00024674,2]
[406800757,1772203851950,-151.0,0.00024674,2]
[406800758,1772203851968,-250.0,0.00024674,2]
[406800759,1772203851981,-151.0,0.00024674,2]
[406800760,1772203851999,-250.0,0.00024674,2]
[406800761,1772203852012,-151.0,0.00024674,2]
[406800762,1772203852027,-743.50770149,0.00024674,2]
[406800763,1772203852042,-282.88499327,0.00024674,2]
[406800764,1772203852060,-151.0,0.00024674,2]
[406800765,1772203852075,-253.48474784,0.00024674,2]
[406800766,1772203852089,-151.0,0.00024674,2]
[406800767,1772203852105,-151.0,0.00024674,2]
[406800768,1772203852119,-151.0,0.00024674,2]
[406800769,1772203852134,-151.0,0.00024674,2]
[406800770,1772203852149,-151.0,0.00024674,2]
[406800771,1772203852164,-151.0,0.00024674,2]
[406800772,1772203852179,-151.0,0.00024674,2]
[406800773,1772203852194,-151.0,0.00024674,2]
[406800774,1772203852209,-151.0,0.00024674,2]
[406800775,1772203852224,-151.0,0.00024674,2]
[406800776,1772203852238,-151.0,0.00024674,2]
[406800777,1772203852253,-500.0,0.00024674,2]